[Event "*** SCC Grand Prix: Titled Tuesday Blitz"]
[Site "Chess.com"]
[Date "2020.07.07"]
[Round "8"]
[White "mirochka"]
[Black "The_Machine04"]
[Result "1-0"]
[WhiteElo "2147"]
[BlackElo "2261"]
[TimeControl "180+1"]
[EndTime "11:36:19 PDT"]
[Termination "mirochka won on time"]

1. e4 {[%clk 0:03:00.6]} 1... d6 {[%clk 0:02:50.2]} 2. d4 {[%clk 0:02:59.9]}
2... Nf6 {[%clk 0:02:47.3]} 3. Nc3 {[%clk 0:02:59.8]} 3... e5 {[%clk 0:02:35.3]}
4. Nf3 {[%clk 0:02:52.1]} 4... Nbd7 {[%clk 0:02:33.3]} 5. Bc4 {[%clk 0:02:49.4]}
5... Be7 {[%clk 0:02:32.1]} 6. a4 {[%clk 0:02:48.3]} 6... O-O {[%clk 0:02:28.1]}
7. O-O {[%clk 0:02:46]} 7... c6 {[%clk 0:02:18.4]} 8. h3 {[%clk 0:02:36.7]} 8...
Qc7 {[%clk 0:02:05.8]} 9. Be3 {[%clk 0:02:06.2]} 9... b6 {[%clk 0:01:53.8]} 10.
Re1 {[%clk 0:02:00.9]} 10... a6 {[%clk 0:01:46.1]} 11. Bb3 {[%clk 0:01:38.8]}
11... Bb7 {[%clk 0:01:40.7]} 12. Qe2 {[%clk 0:01:37.4]} 12... b5 {[%clk
0:01:39.1]} 13. axb5 {[%clk 0:01:33]} 13... axb5 {[%clk 0:01:40]} 14. Rxa8
{[%clk 0:01:18.4]} 14... Rxa8 {[%clk 0:01:35.9]} 15. Ng5 {[%clk 0:00:57.1]}
15... Rf8 {[%clk 0:01:24.3]} 16. f4 {[%clk 0:00:45]} 16... h6 {[%clk 0:01:14.7]}
17. fxe5 {[%clk 0:00:39]} 17... dxe5 {[%clk 0:01:11.7]} 18. Nf3 {[%clk 0:00:32]}
18... Re8 {[%clk 0:00:58.2]} 19. d5 {[%clk 0:00:24.2]} 19... Bc5 {[%clk
0:00:36.1]} 20. dxc6 {[%clk 0:00:23]} 20... Bxc6 {[%clk 0:00:32.8]} 21. Bxc5
{[%clk 0:00:19.5]} 21... Nxc5 {[%clk 0:00:33.7]} 22. Nxb5 {[%clk 0:00:19.1]}
22... Bxb5 {[%clk 0:00:20.6]} 23. Qxb5 {[%clk 0:00:18.2]} 23... Rb8 {[%clk
0:00:17.2]} 24. Qc4 {[%clk 0:00:17.6]} 24... Qa7 {[%clk 0:00:11.8]} 25. Kh2
{[%clk 0:00:17.5]} 25... Nxb3 {[%clk 0:00:10.9]} 26. cxb3 {[%clk 0:00:17]} 26...
Qa5 {[%clk 0:00:08.3]} 27. Rf1 {[%clk 0:00:15.5]} 27... Qb5 {[%clk 0:00:07]} 28.
Re1 {[%clk 0:00:13.3]} 28... Kf8 {[%clk 0:00:03.2]} 29. Rd1 {[%clk 0:00:12.5]}
29... Qxc4 {[%clk 0:00:02.5]} 30. bxc4 {[%clk 0:00:13.4]} 30... Rxb2 {[%clk
0:00:02.5]} 31. Nxe5 {[%clk 0:00:13.3]} 31... Nxe4 {[%clk 0:00:02.5]} 32. Rc1
{[%clk 0:00:11.9]} 32... Ke7 {[%clk 0:00:01.5]} 33. c5 {[%clk 0:00:11.9]} 33...
f6 {[%clk 0:00:01.6]} 34. Nd3 {[%clk 0:00:11.5]} 34... Rd2 {[%clk 0:00:01.3]}
35. Nf4 {[%clk 0:00:11.1]} 1-0

[Event "*** SCC Grand Prix: Titled Tuesday Blitz"]
[Site "Chess.com"]
[Date "2020.07.07"]
[Round "8"]
[White "MergenKakabaev"]
[Black "Bigfish1995"]
[Result "0-1"]
[WhiteElo "2452"]
[BlackElo "3034"]
[TimeControl "180+1"]
[EndTime "11:36:21 PDT"]
[Termination "Bigfish1995 won by resignation"]

1. e4 {[%clk 0:03:00.9]} 1... c6 {[%clk 0:02:16.5]} 2. d4 {[%clk 0:02:58.7]}
2... d5 {[%clk 0:02:16.8]} 3. e5 {[%clk 0:02:59]} 3... c5 {[%clk 0:02:15.9]} 4.
dxc5 {[%clk 0:02:58.5]} 4... e6 {[%clk 0:02:15.7]} 5. Be3 {[%clk 0:02:57.5]}
5... Qc7 {[%clk 0:02:14.9]} 6. Nf3 {[%clk 0:02:52.7]} 6... Bxc5 {[%clk
0:02:14.7]} 7. Bxc5 {[%clk 0:02:53.6]} 7... Qxc5 {[%clk 0:02:15]} 8. Nc3 {[%clk
0:02:54.2]} 8... Bd7 {[%clk 0:02:13.3]} 9. Qd2 {[%clk 0:02:54.1]} 9... Ne7
{[%clk 0:02:11.5]} 10. O-O-O {[%clk 0:02:53.9]} 10... a6 {[%clk 0:02:11.7]} 11.
Kb1 {[%clk 0:02:52.4]} 11... Nbc6 {[%clk 0:02:11.7]} 12. Bd3 {[%clk 0:02:29.2]}
12... Ng6 {[%clk 0:02:06.9]} 13. Bxg6 {[%clk 0:02:28.2]} 13... hxg6 {[%clk
0:02:06.6]} 14. Ne4 {[%clk 0:02:27.3]} 14... dxe4 {[%clk 0:02:05.5]} 15. Qxd7+
{[%clk 0:02:26.1]} 15... Kf8 {[%clk 0:02:06.1]} 16. Ng5 {[%clk 0:02:25.6]} 16...
Qe7 {[%clk 0:02:04.4]} 17. Nxe4 {[%clk 0:02:15.2]} 17... Nxe5 {[%clk 0:02:04.5]}
18. Qd4 {[%clk 0:02:07.4]} 18... Nc6 {[%clk 0:02:02.9]} 19. Qe3 {[%clk
0:02:07.5]} 19... Rh5 {[%clk 0:02:02.1]} 20. g4 {[%clk 0:02:02.2]} 20... Rh4
{[%clk 0:01:55.8]} 21. h3 {[%clk 0:02:01.1]} 21... Kg8 {[%clk 0:01:56.2]} 22.
Rd2 {[%clk 0:01:54.3]} 22... Rf8 {[%clk 0:01:54.5]} 23. Rhd1 {[%clk 0:01:53.6]}
23... Rh8 {[%clk 0:01:25.7]} 24. Rd7 {[%clk 0:01:46]} 24... Qh4 {[%clk
0:01:25.8]} 25. Qc3 {[%clk 0:01:35.4]} 25... Qxh3 {[%clk 0:01:23.3]} 26. Rxb7
{[%clk 0:01:34.4]} 26... Qxc3 {[%clk 0:01:22.3]} 27. Nxc3 {[%clk 0:01:34.6]}
27... Ne5 {[%clk 0:01:23.2]} 28. g5 {[%clk 0:01:33.3]} 28... Rh2 {[%clk
0:01:21.1]} 29. f4 {[%clk 0:01:32.8]} 29... Nc4 {[%clk 0:01:20.4]} 30. Ne4
{[%clk 0:01:20.1]} 30... Ne3 {[%clk 0:01:18.7]} 31. Rc1 {[%clk 0:01:19.7]} 31...
Rh4 {[%clk 0:01:18.2]} 32. c4 {[%clk 0:01:17.1]} 32... Rxf4 {[%clk 0:01:16]} 33.
Nd6 {[%clk 0:01:17.1]} 33... Nf5 {[%clk 0:01:13.2]} 34. Nxf5 {[%clk 0:01:16]}
34... gxf5 {[%clk 0:00:58.4]} 35. c5 {[%clk 0:01:13.6]} 35... Rd4 {[%clk
0:00:56.3]} 36. c6 {[%clk 0:01:13.8]} 36... Rdd8 {[%clk 0:00:56.8]} 37. c7
{[%clk 0:01:12.1]} 37... Rc8 {[%clk 0:00:57]} 38. b4 {[%clk 0:01:12.6]} 38... f4
{[%clk 0:00:56.6]} 39. a4 {[%clk 0:01:12.9]} 39... e5 {[%clk 0:00:51.8]} 40. b5
{[%clk 0:01:01]} 40... axb5 {[%clk 0:00:46.4]} 41. axb5 {[%clk 0:01:01.9]} 41...
f3 {[%clk 0:00:46.3]} 42. b6 {[%clk 0:01:01.3]} 42... e4 {[%clk 0:00:46.2]} 43.
Ra7 {[%clk 0:01:01.5]} 43... e3 {[%clk 0:00:39.9]} 44. Ra3 {[%clk 0:01:01.3]}
44... Rfe8 {[%clk 0:00:40.1]} 45. Rf1 {[%clk 0:00:20]} 45... e2 {[%clk
0:00:34.8]} 46. Raxf3 {[%clk 0:00:19.5]} 46... exf1=Q+ {[%clk 0:00:35.3]} 47.
Rxf1 {[%clk 0:00:20.4]} 47... Re6 {[%clk 0:00:36]} 0-1

[Event "*** SCC Grand Prix: Titled Tuesday Blitz"]
[Site "Chess.com"]
[Date "2020.07.07"]
[Round "8"]
[White "diablanni"]
[Black "gumimis"]
[Result "1-0"]
[WhiteElo "2302"]
[BlackElo "2173"]
[TimeControl "180+1"]
[EndTime "11:36:21 PDT"]
[Termination "diablanni won by checkmate"]

1. e4 {[%clk 0:02:59.8]} 1... c6 {[%clk 0:02:58.8]} 2. d4 {[%clk 0:02:58.6]}
2... d5 {[%clk 0:02:59.1]} 3. Nc3 {[%clk 0:02:57.5]} 3... dxe4 {[%clk
0:02:58.1]} 4. Nxe4 {[%clk 0:02:56.5]} 4... Bf5 {[%clk 0:02:58.5]} 5. Ng3 {[%clk
0:02:55.4]} 5... Bg6 {[%clk 0:02:56.5]} 6. h4 {[%clk 0:02:54.5]} 6... h6 {[%clk
0:02:56.2]} 7. Nf3 {[%clk 0:02:54.1]} 7... e6 {[%clk 0:02:56.3]} 8. Ne5 {[%clk
0:02:32.6]} 8... Bh7 {[%clk 0:02:54.3]} 9. Bd3 {[%clk 0:02:32.1]} 9... Bxd3
{[%clk 0:02:53.7]} 10. Qxd3 {[%clk 0:02:31.5]} 10... Nf6 {[%clk 0:02:54.1]} 11.
Bf4 {[%clk 0:02:07.4]} 11... c5 {[%clk 0:02:47.5]} 12. O-O-O {[%clk 0:01:51.3]}
12... Nd5 {[%clk 0:02:34.1]} 13. Qb5+ {[%clk 0:01:40.8]} 13... Nd7 {[%clk
0:02:30.2]} 14. dxc5 {[%clk 0:01:36.7]} 14... Rc8 {[%clk 0:01:42.5]} 15. b4
{[%clk 0:00:43.6]} 15... a6 {[%clk 0:01:17.9]} 16. Qa4 {[%clk 0:00:38.9]} 16...
b5 {[%clk 0:00:37.9]} 17. Qb3 {[%clk 0:00:29.8]} 17... Be7 {[%clk 0:00:26.6]}
18. Nf5 {[%clk 0:00:18.8]} 18... exf5 {[%clk 0:00:17.8]} 19. Rxd5 {[%clk
0:00:16.9]} 19... Rc7 {[%clk 0:00:15.6]} 20. c6 {[%clk 0:00:15.1]} 20... O-O
{[%clk 0:00:13.4]} 21. Rxd7 {[%clk 0:00:14.3]} 21... Rxd7 {[%clk 0:00:13.3]} 22.
Nxd7 {[%clk 0:00:13.3]} 22... Re8 {[%clk 0:00:13.7]} 23. Rd1 {[%clk 0:00:12.9]}
23... Bxh4 {[%clk 0:00:10.1]} 24. Ne5 {[%clk 0:00:12.2]} 24... Qe7 {[%clk
0:00:08.7]} 25. Rd7 {[%clk 0:00:12]} 25... Qe6 {[%clk 0:00:08.8]} 26. Qxe6
{[%clk 0:00:11.5]} 26... fxe6 {[%clk 0:00:09.2]} 27. c7 {[%clk 0:00:10.8]} 27...
Rc8 {[%clk 0:00:09.6]} 28. Nc6 {[%clk 0:00:10.8]} 28... Kf8 {[%clk 0:00:08.2]}
29. Bd6+ {[%clk 0:00:10.8]} 29... Ke8 {[%clk 0:00:08.3]} 30. Rxg7 {[%clk
0:00:10.8]} 30... Bg5+ {[%clk 0:00:04.5]} 31. Kb1 {[%clk 0:00:10]} 31... e5
{[%clk 0:00:03.9]} 32. Nxe5 {[%clk 0:00:09.7]} 32... Bf6 {[%clk 0:00:03.6]} 33.
Rg8# {[%clk 0:00:09.6]} 1-0

[Event "*** SCC Grand Prix: Titled Tuesday Blitz"]
[Site "Chess.com"]
[Date "2020.07.07"]
[Round "8"]
[White "GothamChess"]
[Black "DenLaz"]
[Result "0-1"]
[WhiteElo "2583"]
[BlackElo "2700"]
[TimeControl "180+1"]
[EndTime "11:36:22 PDT"]
[Termination "DenLaz won on time"]

1. e4 {[%clk 0:03:00.9]} 1... e5 {[%clk 0:02:59.2]} 2. Nc3 {[%clk 0:03:01.1]}
2... Nf6 {[%clk 0:02:58.3]} 3. f4 {[%clk 0:03:01.1]} 3... d5 {[%clk 0:02:57.3]}
4. fxe5 {[%clk 0:03:01.3]} 4... Nxe4 {[%clk 0:02:56.6]} 5. Qf3 {[%clk 0:03:02]}
5... f5 {[%clk 0:02:56.2]} 6. d3 {[%clk 0:03:01.8]} 6... Nxc3 {[%clk 0:02:55.4]}
7. bxc3 {[%clk 0:03:02.7]} 7... d4 {[%clk 0:02:55.1]} 8. Qg3 {[%clk 0:03:02.8]}
8... Nc6 {[%clk 0:02:46.7]} 9. Be2 {[%clk 0:02:56.8]} 9... Qd5 {[%clk 0:02:29]}
10. Bf4 {[%clk 0:02:42.9]} 10... dxc3 {[%clk 0:02:20.2]} 11. Bf3 {[%clk
0:02:37.2]} 11... Qf7 {[%clk 0:02:15.1]} 12. Bxc6+ {[%clk 0:02:33.7]} 12... bxc6
{[%clk 0:02:13.5]} 13. Nf3 {[%clk 0:02:32]} 13... h6 {[%clk 0:02:12.4]} 14. h4
{[%clk 0:02:31]} 14... Be6 {[%clk 0:02:11]} 15. O-O {[%clk 0:02:26.5]} 15...
Bc5+ {[%clk 0:02:09]} 16. d4 {[%clk 0:02:20.7]} 16... Bb6 {[%clk 0:02:07.2]} 17.
Qe1 {[%clk 0:02:12.3]} 17... c5 {[%clk 0:01:50.2]} 18. Qxc3 {[%clk 0:02:08.8]}
18... cxd4 {[%clk 0:01:49.4]} 19. Qc6+ {[%clk 0:02:08.6]} 19... Ke7 {[%clk
0:01:46.1]} 20. Bc1 {[%clk 0:01:45]} 20... Qh5 {[%clk 0:01:32.9]} 21. Ba3+
{[%clk 0:01:24.7]} 21... Kf7 {[%clk 0:01:31.5]} 22. Bc5 {[%clk 0:01:22.4]} 22...
Rad8 {[%clk 0:01:10.9]} 23. Rad1 {[%clk 0:01:04.9]} 23... d3 {[%clk 0:00:17.3]}
24. cxd3 {[%clk 0:00:52.8]} 24... Rhe8 {[%clk 0:00:16.4]} 25. d4 {[%clk
0:00:41.9]} 25... Bd5 {[%clk 0:00:15.8]} 26. Qb5 {[%clk 0:00:23.5]} 26... Re6
{[%clk 0:00:15.8]} 27. Bxb6 {[%clk 0:00:18.5]} 27... cxb6 {[%clk 0:00:16.7]} 28.
Qa6 {[%clk 0:00:16.9]} 28... Rg6 {[%clk 0:00:14.8]} 29. Qe2 {[%clk 0:00:12.9]}
29... Kg8 {[%clk 0:00:13.6]} 30. Rd2 {[%clk 0:00:08.6]} 30... Rg4 {[%clk
0:00:13.5]} 31. Kf2 {[%clk 0:00:05.6]} 31... Re8 {[%clk 0:00:13.2]} 32. Rh1
{[%clk 0:00:05.3]} 32... Re6 {[%clk 0:00:12.4]} 33. Qd3 {[%clk 0:00:03.1]} 33...
Reg6 {[%clk 0:00:11.3]} 34. Rh2 {[%clk 0:00:03.2]} 34... Rf4 {[%clk 0:00:10.2]}
35. Ke1 {[%clk 0:00:02.8]} 35... Bxf3 {[%clk 0:00:09]} 36. gxf3 {[%clk
0:00:03.3]} 36... Rxf3 {[%clk 0:00:09.8]} 37. Qc4+ {[%clk 0:00:03.3]} 37... Kh7
{[%clk 0:00:09.9]} 0-1

[Event "*** SCC Grand Prix: Titled Tuesday Blitz"]
[Site "Chess.com"]
[Date "2020.07.07"]
[Round "8"]
[White "Gusarov91"]
[Black "S2PAc"]
[Result "1-0"]
[WhiteElo "2649"]
[BlackElo "2755"]
[TimeControl "180+1"]
[EndTime "11:36:23 PDT"]
[Termination "Gusarov91 won by resignation"]

1. d4 {[%clk 0:03:00.9]} 1... Nf6 {[%clk 0:02:49.4]} 2. Nf3 {[%clk 0:03:00.7]}
2... e6 {[%clk 0:02:45.5]} 3. c4 {[%clk 0:03:00.6]} 3... c5 {[%clk 0:02:45.9]}
4. d5 {[%clk 0:02:55.4]} 4... exd5 {[%clk 0:02:46.8]} 5. cxd5 {[%clk 0:02:55.7]}
5... Bd6 {[%clk 0:02:47.7]} 6. Nc3 {[%clk 0:02:55.3]} 6... Bc7 {[%clk
0:02:48.2]} 7. d6 {[%clk 0:02:55.4]} 7... Ba5 {[%clk 0:02:47.7]} 8. Bg5 {[%clk
0:02:55.1]} 8... Qb6 {[%clk 0:02:47.6]} 9. Bxf6 {[%clk 0:02:41.2]} 9... Qxb2
{[%clk 0:02:47.4]} 10. Bxg7 {[%clk 0:02:39.1]} 10... Bxc3+ {[%clk 0:02:47.1]}
11. Bxc3 {[%clk 0:02:38.9]} 11... Qxc3+ {[%clk 0:02:48]} 12. Nd2 {[%clk
0:02:39.3]} 12... Nc6 {[%clk 0:02:47.6]} 13. Rc1 {[%clk 0:02:39.3]} 13... Qd4
{[%clk 0:02:47.3]} 14. Nb3 {[%clk 0:02:36.7]} 14... Qxd1+ {[%clk 0:02:45.5]} 15.
Kxd1 {[%clk 0:02:37]} 15... b6 {[%clk 0:02:44.2]} 16. e4 {[%clk 0:02:35.3]}
16... Bb7 {[%clk 0:02:42.5]} 17. f4 {[%clk 0:02:34.8]} 17... Kf8 {[%clk
0:02:28.5]} 18. e5 {[%clk 0:02:27.9]} 18... Rg8 {[%clk 0:02:27.5]} 19. Rb1
{[%clk 0:02:22]} 19... f6 {[%clk 0:02:23.7]} 20. Nxc5 {[%clk 0:02:21.9]} 20...
Bc8 {[%clk 0:02:17.4]} 21. Nd3 {[%clk 0:02:13]} 21... fxe5 {[%clk 0:02:17.7]}
22. Nxe5 {[%clk 0:02:07.3]} 22... Nxe5 {[%clk 0:02:12.2]} 23. fxe5 {[%clk
0:02:07.2]} 23... Rg5 {[%clk 0:02:12.7]} 24. Bd3 {[%clk 0:02:02]} 24... Bb7
{[%clk 0:02:05.2]} 25. Rf1+ {[%clk 0:01:49.8]} 25... Kg7 {[%clk 0:02:05]} 26.
Rb2 {[%clk 0:01:34.1]} 26... Bxg2 {[%clk 0:01:49.8]} 27. Rf5 {[%clk 0:01:33.3]}
27... Rg4 {[%clk 0:01:12.7]} 28. Be2 {[%clk 0:00:54.7]} 28... Rg6 {[%clk
0:01:00.5]} 29. Bb5 {[%clk 0:00:30.7]} 29... Bh3 {[%clk 0:00:57.1]} 30. Rff2
{[%clk 0:00:30]} 30... Re8 {[%clk 0:00:53.4]} 31. Rb3 {[%clk 0:00:23]} 31...
Bg4+ {[%clk 0:00:52]} 32. Kc1 {[%clk 0:00:15.4]} 32... Rxe5 {[%clk 0:00:52.2]}
33. Bd3 {[%clk 0:00:15.5]} 33... Rgg5 {[%clk 0:00:29.7]} 34. h4 {[%clk
0:00:15.3]} 34... Rh5 {[%clk 0:00:29.6]} 35. Rg2 {[%clk 0:00:15.8]} 35... Rxh4
{[%clk 0:00:30.1]} 36. Rb4 {[%clk 0:00:16.4]} 36... h5 {[%clk 0:00:28.5]} 37.
Kb2 {[%clk 0:00:15.8]} 37... Rh3 {[%clk 0:00:25.4]} 38. Bb5 {[%clk 0:00:15.3]}
38... Kh6 {[%clk 0:00:22.3]} 39. Rbxg4 {[%clk 0:00:15.2]} 39... h4 {[%clk
0:00:23.2]} 40. Rg6+ {[%clk 0:00:14.2]} 40... Kh5 {[%clk 0:00:23.4]} 41. Bxd7
{[%clk 0:00:14.6]} 41... Rhe3 {[%clk 0:00:22.2]} 42. Rg8 {[%clk 0:00:14.1]}
42... Re2+ {[%clk 0:00:22.1]} 43. Rxe2 {[%clk 0:00:14.5]} 43... Rxe2+ {[%clk
0:00:23]} 44. Kc3 {[%clk 0:00:15.2]} 44... Re3+ {[%clk 0:00:23.2]} 45. Kd4
{[%clk 0:00:15.2]} 1-0

[Event "*** SCC Grand Prix: Titled Tuesday Blitz"]
[Site "Chess.com"]
[Date "2020.07.07"]
[Round "8"]
[White "swimmerchess"]
[Black "JozefKneht"]
[Result "1/2-1/2"]
[WhiteElo "2810"]
[BlackElo "2499"]
[TimeControl "180+1"]
[EndTime "11:36:28 PDT"]
[Termination "Game drawn by repetition"]

1. e4 {[%clk 0:03:00.9]} 1... e5 {[%clk 0:02:59.3]} 2. Nf3 {[%clk 0:03:01.1]}
2... Nc6 {[%clk 0:02:58.8]} 3. Bb5 {[%clk 0:03:01.6]} 3... a6 {[%clk 0:02:58.6]}
4. Ba4 {[%clk 0:03:01.1]} 4... Nf6 {[%clk 0:02:58.7]} 5. O-O {[%clk 0:03:01.6]}
5... Nxe4 {[%clk 0:02:58.8]} 6. d4 {[%clk 0:03:01.6]} 6... b5 {[%clk 0:02:59.1]}
7. Bb3 {[%clk 0:03:02.2]} 7... d5 {[%clk 0:02:59.7]} 8. dxe5 {[%clk 0:03:02.7]}
8... Be6 {[%clk 0:03:00.4]} 9. Qe2 {[%clk 0:03:03.3]} 9... Be7 {[%clk
0:02:59.9]} 10. Rd1 {[%clk 0:03:03.1]} 10... O-O {[%clk 0:02:59.2]} 11. c4
{[%clk 0:03:03.8]} 11... bxc4 {[%clk 0:02:59.6]} 12. Bxc4 {[%clk 0:03:04.7]}
12... Bc5 {[%clk 0:02:59.9]} 13. Be3 {[%clk 0:03:04.6]} 13... Bxe3 {[%clk
0:03:00.5]} 14. Qxe3 {[%clk 0:03:05.5]} 14... Qb8 {[%clk 0:03:00.7]} 15. Bb3
{[%clk 0:03:05.3]} 15... Na5 {[%clk 0:03:00.7]} 16. Nd4 {[%clk 0:03:05.9]} 16...
c5 {[%clk 0:02:37.2]} 17. Nxe6 {[%clk 0:03:05.8]} 17... fxe6 {[%clk 0:02:37.3]}
18. f3 {[%clk 0:03:06.7]} 18... c4 {[%clk 0:02:34.4]} 19. fxe4 {[%clk
0:03:07.3]} 19... cxb3 {[%clk 0:02:33.1]} 20. exd5 {[%clk 0:03:08.2]} 20... bxa2
{[%clk 0:02:33.5]} 21. Rxa2 {[%clk 0:03:05.4]} 21... Nc4 {[%clk 0:02:31.1]} 22.
Qd4 {[%clk 0:03:05.8]} 22... Qb3 {[%clk 0:02:29.6]} 23. Nc3 {[%clk 0:03:05.7]}
23... Rac8 {[%clk 0:02:21.4]} 24. Rb1 {[%clk 0:03:05.8]} 24... Ne3 {[%clk
0:02:14.5]} 25. Qxe3 {[%clk 0:03:03.7]} 25... Rxc3 {[%clk 0:02:12.1]} 26. Qxc3
{[%clk 0:03:04.6]} 26... Qxa2 {[%clk 0:02:09.7]} 27. Rd1 {[%clk 0:03:05.5]}
27... exd5 {[%clk 0:02:06.3]} 28. Qd4 {[%clk 0:03:05.5]} 28... Qc4 {[%clk
0:02:03]} 29. Qb6 {[%clk 0:02:23.1]} 29... d4 {[%clk 0:01:46]} 30. h3 {[%clk
0:02:11.1]} 30... d3 {[%clk 0:01:44.3]} 31. e6 {[%clk 0:02:07.7]} 31... Re8
{[%clk 0:01:42.3]} 32. e7 {[%clk 0:01:59.2]} 32... d2 {[%clk 0:01:02.9]} 33. Qe3
{[%clk 0:01:07.3]} 33... Qf7 {[%clk 0:00:42.9]} 34. Rxd2 {[%clk 0:01:04]} 34...
Qxe7 {[%clk 0:00:42.9]} 35. Qb3+ {[%clk 0:01:03.1]} 35... Qe6 {[%clk 0:00:41.5]}
36. Qb4 {[%clk 0:00:59.3]} 36... Qe1+ {[%clk 0:00:34.9]} 37. Kh2 {[%clk
0:00:58.7]} 37... Qe5+ {[%clk 0:00:34.1]} 38. g3 {[%clk 0:00:58]} 38... h6
{[%clk 0:00:32.6]} 39. Qg4 {[%clk 0:00:55.5]} 39... Rb8 {[%clk 0:00:26]} 40. b3
{[%clk 0:00:50.8]} 40... Kh8 {[%clk 0:00:22.2]} 41. Qc4 {[%clk 0:00:38.8]} 41...
Kh7 {[%clk 0:00:19.5]} 42. Re2 {[%clk 0:00:34.1]} 42... Qf5 {[%clk 0:00:17.7]}
43. Kg2 {[%clk 0:00:33.2]} 43... a5 {[%clk 0:00:17.4]} 44. Rf2 {[%clk
0:00:30.5]} 44... Qb1 {[%clk 0:00:15.8]} 45. Rf3 {[%clk 0:00:29.7]} 45... Qb2+
{[%clk 0:00:14.9]} 46. Kg1 {[%clk 0:00:24.8]} 46... Qb1+ {[%clk 0:00:15.1]} 47.
Kg2 {[%clk 0:00:20]} 47... Qb2+ {[%clk 0:00:15.1]} 48. Kg1 {[%clk 0:00:20.5]}
48... Qb1+ {[%clk 0:00:15.3]} 49. Kg2 {[%clk 0:00:21.1]} 1/2-1/2

[Event "*** SCC Grand Prix: Titled Tuesday Blitz"]
[Site "Chess.com"]
[Date "2020.07.07"]
[Round "8"]
[White "Reader777"]
[Black "Zq1"]
[Result "0-1"]
[WhiteElo "2654"]
[BlackElo "2537"]
[TimeControl "180+1"]
[EndTime "11:36:30 PDT"]
[Termination "Zq1 won by resignation"]

1. d4 {[%clk 0:03:00.9]} 1... Nf6 {[%clk 0:02:59.1]} 2. c4 {[%clk 0:03:00.5]}
2... a6 {[%clk 0:02:59.3]} 3. Nc3 {[%clk 0:02:59.6]} 3... c5 {[%clk 0:02:59.5]}
4. Nf3 {[%clk 0:02:57.3]} 4... cxd4 {[%clk 0:02:59]} 5. Nxd4 {[%clk 0:02:57]}
5... d5 {[%clk 0:02:59.3]} 6. e3 {[%clk 0:02:50.3]} 6... e6 {[%clk 0:02:51.2]}
7. Be2 {[%clk 0:02:44.9]} 7... Be7 {[%clk 0:02:46.6]} 8. O-O {[%clk 0:02:43.9]}
8... dxc4 {[%clk 0:02:46.1]} 9. Bxc4 {[%clk 0:02:42.5]} 9... O-O {[%clk
0:02:45.7]} 10. b3 {[%clk 0:02:39]} 10... b5 {[%clk 0:02:41.7]} 11. Be2 {[%clk
0:02:38.6]} 11... Bb7 {[%clk 0:02:41.2]} 12. Bb2 {[%clk 0:02:37.6]} 12... Nbd7
{[%clk 0:02:37.5]} 13. Rc1 {[%clk 0:02:24.8]} 13... Rc8 {[%clk 0:02:35.7]} 14.
Qd2 {[%clk 0:02:13.7]} 14... Nc5 {[%clk 0:02:21.2]} 15. Rfd1 {[%clk 0:01:52.8]}
15... Qb6 {[%clk 0:02:15.2]} 16. b4 {[%clk 0:01:45.2]} 16... Nce4 {[%clk
0:02:09.8]} 17. Nxe4 {[%clk 0:01:45.4]} 17... Nxe4 {[%clk 0:01:47.2]} 18. Qe1
{[%clk 0:01:44.6]} 18... Bf6 {[%clk 0:01:42.1]} 19. Rxc8 {[%clk 0:01:29.8]}
19... Rxc8 {[%clk 0:01:41.1]} 20. Rc1 {[%clk 0:01:29.5]} 20... Rd8 {[%clk
0:01:38]} 21. Bf3 {[%clk 0:01:24.2]} 21... Nd6 {[%clk 0:01:16.6]} 22. Bxb7
{[%clk 0:01:21.3]} 22... Qxb7 {[%clk 0:01:16.1]} 23. Bc3 {[%clk 0:01:03.1]}
23... Nc4 {[%clk 0:01:10.1]} 24. Nb3 {[%clk 0:00:59.3]} 24... Bxc3 {[%clk
0:01:04.9]} 25. Qxc3 {[%clk 0:00:58.6]} 25... Qd5 {[%clk 0:01:01]} 26. h3 {[%clk
0:00:50.5]} 26... e5 {[%clk 0:00:54.1]} 27. Nc5 {[%clk 0:00:44.7]} 27... Rd6
{[%clk 0:00:47.9]} 28. a4 {[%clk 0:00:40.7]} 28... h6 {[%clk 0:00:35]} 29. axb5
{[%clk 0:00:37.6]} 29... axb5 {[%clk 0:00:34.7]} 30. Ra1 {[%clk 0:00:27.5]}
30... Qd2 {[%clk 0:00:33.2]} 31. Qxd2 {[%clk 0:00:25.8]} 31... Rxd2 {[%clk
0:00:33.2]} 32. Ra8+ {[%clk 0:00:25.6]} 32... Kh7 {[%clk 0:00:33.4]} 33. Rb8
{[%clk 0:00:25.9]} 33... Rd1+ {[%clk 0:00:22.5]} 34. Kh2 {[%clk 0:00:25.5]}
34... Nd2 {[%clk 0:00:22.7]} 35. g3 {[%clk 0:00:23.4]} 35... f5 {[%clk
0:00:20.2]} 36. Rxb5 {[%clk 0:00:22.6]} 36... Nf3+ {[%clk 0:00:18.1]} 37. Kg2
{[%clk 0:00:22.6]} 37... e4 {[%clk 0:00:18.5]} 38. h4 {[%clk 0:00:19.7]} 38...
g5 {[%clk 0:00:18.5]} 39. Rb7+ {[%clk 0:00:10.6]} 39... Kg6 {[%clk 0:00:17.9]}
40. Rb6+ {[%clk 0:00:04.1]} 40... Kh5 {[%clk 0:00:17.5]} 41. Nxe4 {[%clk
0:00:03.4]} 41... fxe4 {[%clk 0:00:16.9]} 42. g4+ {[%clk 0:00:01.1]} 42... Kxg4
{[%clk 0:00:15.8]} 0-1